lending/lending_fUSD_20250121
["ID","MTS","AMOUNT","RATE_DAILY","PERIOD"]
[349772373,1737420642251,-500.0,0.00019451,2]
[349772374,1737420642260,-342.17491081,0.00019451,2]
[349772375,1737420642270,-500.0,0.00019451,2]
[349772376,1737420642279,-500.0,0.00019451,2]
[349772377,1737420642290,-500.0,0.00019451,2]
[349772378,1737420642300,-500.0,0.00019451,2]
[349772379,1737420642309,-500.0,0.00019451,2]
[349772380,1737420642318,-500.0,0.00019451,2]
[349772381,1737420642327,-500.0,0.00019451,2]
[349772382,1737420642337,-500.0,0.00019451,2]
[349772383,1737420642346,-500.0,0.00019451,2]
[349772384,1737420642356,-500.0,0.00019451,2]
[349772385,1737420642365,-500.0,0.00019451,2]
[349772386,1737420642375,-500.0,0.00019451,2]
[349772387,1737420642385,-500.0,0.00019451,2]
[349772388,1737420642394,-500.0,0.00019451,2]
[349772389,1737420642404,-500.0,0.00019451,2]
[349772390,1737420642415,-500.0,0.00019451,2]
[349772391,1737420642426,-500.0,0.00019451,2]
[349772392,1737420642435,-572.63,0.00019451,2]
[349772393,1737420642445,-500.0,0.00019451,2]
[349772394,1737420642455,-500.0,0.00019451,2]
[349772395,1737420642464,-500.0,0.00019451,2]
[349772396,1737420642473,-500.0,0.00019451,2]
[349772397,1737420642483,-500.0,0.00019451,2]
[349772398,1737420642492,-500.0,0.00019451,2]
[349772399,1737420642502,-500.0,0.00019451,2]
[349772400,1737420642512,-331.35263455,0.00019451,2]
[349772401,1737420642521,-500.0,0.00019451,2]
[349772402,1737420642531,-500.0,0.00019451,2]
[349772403,1737420642541,-569.92,0.00019451,2]
[349772404,1737420642551,-488.76880349,0.00019451,2]
[349772405,1737420642560,-157.21536662,0.00019451,2]
[349772406,1737420642712,-500.0,0.00019451,2]
[349772407,1737420642722,-500.0,0.00019451,2]
[349772408,1737420642732,-500.0,0.00019451,2]
[349772409,1737420642742,-500.0,0.00019451,2]
[349772410,1737420642751,-500.0,0.00019451,2]
[349772411,1737420642760,-500.0,0.00019451,2]
[349772412,1737420642769,-500.0,0.00019451,2]
[349772413,1737420642779,-687.02,0.00019451,2]
[349772414,1737420642788,-500.0,0.00019451,2]
[349772415,1737420642798,-500.0,0.00019451,2]
[349772416,1737420642807,-500.0,0.00019451,2]
[349772417,1737420642816,-500.0,0.00019451,2]
[349772418,1737420642826,-500.0,0.00019451,2]
[349772419,1737420642836,-500.0,0.00019451,2]
[349772420,1737420642845,-668.45,0.00019451,2]
[349772421,1737420642854,-650.98,0.00019451,2]
[349772422,1737420642864,-563.68,0.00019451,2]
[349772423,1737420642873,-500.0,0.00019451,2]
[349772424,1737420642882,-500.0,0.00019451,2]
[349772425,1737420642892,-566.19,0.00019451,2]
[349772426,1737420642902,-500.0,0.00019451,2]
[349772427,1737420642914,-529.83,0.00019451,2]
[349772428,1737420642923,-500.0,0.00019451,2]
[349772429,1737420642933,-640.55451715,0.00019451,2]
[349772430,1737420642942,-1013.61,0.00019451,2]
[349772431,1737420642951,-564.16,0.00019451,2]
[349772432,1737420642960,-606.85,0.00019451,2]
[349772433,1737420642969,-796.12,0.00019451,2]
[349772434,1737420642978,-500.0,0.00019451,2]
[349772435,1737420642988,-500.0,0.00019451,2]
[349772436,1737420642997,-556.23737929,0.00019451,2]
[349772437,1737420643006,-500.0,0.00019451,2]
[349772438,1737420643015,-1154.51,0.00019451,2]
[349772439,1737420643025,-500.0,0.00019451,2]
[349772440,1737420643035,-500.0,0.00019451,2]
[349772441,1737420643044,-500.0,0.00019451,2]
[349772442,1737420643054,-2225.1,0.00019451,2]
[349772443,1737420643063,-882.93,0.00019451,2]
[349772444,1737420643073,-1343.47,0.00019451,2]
[349772445,1737420643082,-881.44,0.00019451,2]
[349772446,1737420643091,-2159.62,0.00019451,2]
[349772447,1737420643100,-500.0,0.00019451,2]
[349772448,1737420643110,-3061.98,0.00019451,2]
[349772449,1737420643119,-610.57,0.00019451,2]
[349772450,1737420643129,-1451.25,0.00019451,2]
[349772451,1737420643138,-500.0,0.00019451,2]
[349772452,1737420643148,-980.84,0.00019451,2]
[349772454,1737420643157,-2840.37,0.00019451,2]
[349772455,1737420643169,-500.0,0.00019451,2]
[349772457,1737420643179,-958.08,0.00019451,2]
[349772460,1737420643188,-1204.91,0.00019451,2]
[349772462,1737420643198,-500.0,0.00019451,2]
[349772464,1737420643208,-500.0,0.00019451,2]
[349772466,1737420643222,-997.28,0.00019451,2]
[349772468,1737420643232,-539.74849268,0.00019451,2]
[349772471,1737420643241,-1712.99,0.00019451,2]
[349772474,1737420643251,-500.0,0.00019451,2]
[349772477,1737420643261,-500.89400238,0.00019451,2]
[349772480,1737420643270,-3603.52,0.00019451,2]
[349772483,1737420643280,-500.0,0.00019451,2]
[349772484,1737420643291,-1254.23,0.00019451,2]
[349772486,1737420643301,-500.0,0.00019451,2]
[349772487,1737420643310,-500.0,0.00019451,2]
[349772489,1737420643319,-500.0,0.00019451,2]
[349772492,1737420643328,-500.0,0.00019451,2]
[349772495,1737420643338,-500.0,0.00019451,2]
[349772498,1737420643348,-500.0,0.00019451,2]
[349772501,1737420643357,-500.0,0.00019451,2]
[349772504,1737420643367,-500.0,0.00019451,2]
[349772507,1737420643376,-1445.2,0.00019451,2]
[349772508,1737420643385,-549.87,0.00019451,2]
[349772510,1737420643395,-500.0,0.00019451,2]
[349772513,1737420643405,-500.0,0.00019451,2]
[349772514,1737420643417,-693.42,0.00019451,2]
[349772516,1737420643427,-1915.82,0.00019451,2]
[349772518,1737420643438,-500.0,0.00019451,2]
[349772519,1737420643448,-513.39,0.00019451,2]
[349772520,1737420643457,-1417.44,0.00019451,2]
[349772521,1737420643466,-500.0,0.00019451,2]
[349772522,1737420643476,-500.0,0.00019451,2]
[349772523,1737420643485,-500.0,0.00019451,2]
[349772524,1737420643495,-500.0,0.00019451,2]
[349772525,1737420643504,-500.0,0.00019451,2]
[349772526,1737420643514,-514.92385927,0.00019452,2]
[349772527,1737420643523,-509.81217455,0.00019452,2]
[349772528,1737420643532,-500.0,0.00019452,2]
[349772529,1737420643541,-500.0,0.00019452,2]
[349772530,1737420643552,-500.0,0.00019452,2]
[349772531,1737420643561,-500.0,0.00019452,2]
[349772532,1737420643571,-500.0,0.00019452,2]
[349772533,1737420643580,-500.0,0.00019452,2]
[349772534,1737420643589,-512.53305179,0.00019452,2]
[349772535,1737420643599,-500.0,0.00019452,2]
[349772536,1737420643608,-500.0,0.00019452,2]
[349772537,1737420643617,-500.0,0.00019452,2]
[349772538,1737420643627,-500.0,0.00019452,2]
[349772539,1737420643637,-500.0,0.00019452,2]
[349772540,1737420643646,-215.04445155,0.00019452,2]
[349772541,1737420643656,-500.0,0.00019452,2]
[349772542,1737420643671,-500.0,0.00019452,2]
[349772543,1737420643680,-500.0,0.00019452,2]
[349772544,1737420643690,-500.0,0.00019452,2]
[349772545,1737420643699,-500.0,0.00019452,2]
[349772546,1737420643709,-500.0,0.00019452,2]
[349772547,1737420643718,-500.0,0.00019452,2]
[349772548,1737420643727,-500.0,0.00019452,2]
[349772549,1737420643737,-500.0,0.00019452,2]
[349772550,1737420643747,-500.0,0.00019452,2]
[349772551,1737420643756,-500.0,0.00019452,2]
[349772552,1737420643766,-500.0,0.00019452,2]
[349772553,1737420643775,-500.0,0.00019452,2]
[349772554,1737420643784,-500.0,0.00019452,2]
[349772555,1737420643794,-500.0,0.00019452,2]
[349772556,1737420643803,-500.0,0.00019452,2]
[349772557,1737420643812,-500.0,0.00019452,2]
[349772558,1737420643822,-500.0,0.00019452,2]
[349772559,1737420643831,-500.0,0.00019452,2]
[349772560,1737420643841,-500.0,0.00019452,2]
[349772561,1737420643851,-500.0,0.00019452,2]
[349772562,1737420643860,-500.0,0.00019452,2]
[349772563,1737420643869,-500.0,0.00019452,2]
[349772564,1737420643879,-500.0,0.00019452,2]
[349772565,1737420643888,-500.0,0.00019452,2]
[349772566,1737420643897,-500.0,0.00019452,2]
[349772567,1737420643906,-500.0,0.00019452,2]
[349772568,1737420643921,-500.0,0.00019452,2]
[349772569,1737420643930,-500.0,0.00019452,2]
[349772570,1737420643939,-500.0,0.00019452,2]
[349772571,1737420643949,-500.0,0.00019452,2]
[349772572,1737420643958,-500.0,0.00019452,2]
[349772573,1737420643967,-500.0,0.00019452,2]
[349772574,1737420643976,-500.0,0.00019452,2]
[349772575,1737420643986,-500.0,0.00019452,2]
[349772576,1737420643995,-500.0,0.00019452,2]
[349772577,1737420644004,-500.0,0.00019452,2]
[349772578,1737420644013,-500.0,0.00019452,2]
[349772579,1737420644023,-500.0,0.00019452,2]
[349772580,1737420644032,-500.0,0.00019452,2]
[349772581,1737420644041,-500.0,0.00019452,2]
[349772582,1737420644050,-500.0,0.00019452,2]
[349772583,1737420644059,-500.0,0.00019452,2]
[349772584,1737420644068,-500.0,0.00019452,2]
[349772585,1737420644078,-500.0,0.00019452,2]
[349772586,1737420644087,-500.0,0.00019452,2]
[349772587,1737420644096,-500.0,0.00019452,2]
[349772588,1737420644105,-500.0,0.00019452,2]
[349772589,1737420644114,-515.04958124,0.00019452,2]
[349772590,1737420644123,-500.0,0.00019452,2]
[349772591,1737420644132,-500.0,0.00019452,2]
[349772592,1737420644142,-500.0,0.00019452,2]
[349772593,1737420644151,-500.0,0.00019452,2]
[349772594,1737420644163,-500.0,0.00019452,2]
[349772595,1737420644172,-500.0,0.00019452,2]
[349772596,1737420644183,-500.0,0.00019452,2]
[349772597,1737420644192,-500.0,0.00019452,2]
[349772598,1737420644201,-500.0,0.00019452,2]
[349772599,1737420644214,-500.0,0.00019452,2]
[349772600,1737420644224,-500.0,0.00019452,2]
[349772601,1737420644233,-500.0,0.00019452,2]
[349772602,1737420644242,-500.0,0.00019452,2]
[349772603,1737420644251,-500.0,0.00019452,2]
[349772604,1737420644262,-500.0,0.00019452,2]
[349772605,1737420644271,-500.0,0.00019452,2]
[349772606,1737420644281,-500.0,0.00019452,2]
[349772607,1737420644291,-500.0,0.00019452,2]
[349772608,1737420644301,-583.33,0.00019452,2]
[349772609,1737420644310,-500.0,0.00019452,2]
[349772610,1737420644319,-604.16,0.00019452,2]
[349772611,1737420644329,-500.0,0.00019452,2]
[349772612,1737420644338,-664.29,0.00019452,2]
[349772613,1737420644347,-204.04880849,0.00019452,2]
[349772614,1737420644357,-500.0,0.00019452,2]
[349772615,1737420644367,-500.0,0.00019452,2]
[349772616,1737420644377,-500.0,0.00019452,2]
[349772617,1737420644389,-458.44502557,0.00019452,2]
[349772618,1737420644398,-500.0,0.00019452,2]
[349772619,1737420644408,-500.0,0.00019452,2]
[349772620,1737420644420,-500.0,0.00019452,2]
[349772621,1737420644429,-500.0,0.00019452,2]
[349772622,1737420644439,-500.0,0.00019452,2]
[349772623,1737420644448,-500.0,0.00019452,2]
[349772624,1737420644458,-500.0,0.00019452,2]
[349772625,1737420644467,-500.0,0.00019452,2]
[349772626,1737420644476,-500.0,0.00019452,2]
[349772627,1737420644485,-500.0,0.00019452,2]
[349772628,1737420644494,-500.0,0.00019452,2]
[349772629,1737420644504,-500.0,0.00019452,2]
[349772630,1737420644513,-500.0,0.00019452,2]
[349772631,1737420644522,-500.0,0.00019452,2]
[349772632,1737420644531,-500.0,0.00019452,2]
[349772633,1737420644541,-560.89,0.00019452,2]
[349772634,1737420644550,-500.0,0.00019452,2]
[349772635,1737420644559,-347.62367084,0.00019452,2]
[349772636,1737420644568,-500.0,0.00019452,2]
[349772637,1737420644577,-500.0,0.00019452,2]
[349772638,1737420644587,-500.0,0.00019452,2]
[349772639,1737420644596,-500.0,0.00019452,2]
[349772640,1737420644605,-500.0,0.00019452,2]
[349772641,1737420644614,-500.0,0.00019452,2]
[349772642,1737420644623,-500.0,0.00019452,2]
[349772643,1737420644632,-506.28701953,0.00019452,2]
[349772644,1737420644641,-500.0,0.00019452,2]
[349772645,1737420644650,-500.0,0.00019452,2]
[349772646,1737420644659,-500.0,0.00019452,2]
[349772647,1737420644669,-500.0,0.00019452,2]
[349772648,1737420644678,-500.0,0.00019452,2]
[349772649,1737420644687,-500.0,0.00019452,2]
[349772650,1737420644696,-588.71,0.00019452,2]
[349772651,1737420644706,-500.0,0.00019452,2]
[349772652,1737420644715,-500.0,0.00019452,2]
[349772653,1737420644724,-217.65301949,0.00019452,2]
[349772654,1737420644733,-370.51784183,0.00019452,2]
[349772655,1737420644742,-500.0,0.00019452,2]
[349772656,1737420644752,-500.0,0.00019452,2]
[349772657,1737420644761,-500.0,0.00019452,2]
[349772658,1737420644770,-500.0,0.00019452,2]
[349772659,1737420644780,-500.0,0.00019452,2]
[349772660,1737420644789,-500.0,0.00019452,2]
[349772661,1737420644798,-500.0,0.00019452,2]
[349772662,1737420644807,-500.0,0.00019452,2]
[349772663,1737420644816,-500.0,0.00019452,2]
[349772664,1737420644825,-500.0,0.00019452,2]
[349772665,1737420644835,-500.0,0.00019452,2]
[349772666,1737420644845,-500.0,0.00019452,2]
[349772667,1737420644854,-500.0,0.00019452,2]
[349772668,1737420644863,-500.0,0.00019452,2]
[349772669,1737420644873,-500.0,0.00019452,2]
[349772670,1737420644882,-500.0,0.00019452,2]
[349772671,1737420644891,-1697.86,0.00019452,2]
[349772672,1737420644901,-500.0,0.00019452,2]
[349772673,1737420644912,-500.0,0.00019452,2]
[349772674,1737420644922,-194.48010431,0.00019452,2]
[349772675,1737420644931,-500.0,0.00019452,2]
[349772676,1737420644940,-659.43,0.00019452,2]
[349772677,1737420644950,-500.0,0.00019452,2]
[349772678,1737420644960,-500.0,0.00019452,2]
[349772679,1737420644969,-500.0,0.00019452,2]
[349772680,1737420644978,-500.0,0.00019452,2]
[349772681,1737420644988,-509.56376696,0.00019452,2]
[349772682,1737420644997,-500.0,0.00019452,2]
[349772683,1737420645006,-716.849871,0.00019452,2]
[349772684,1737420645015,-500.0,0.00019452,2]
[349772685,1737420645024,-500.0,0.00019452,2]
[349772686,1737420645033,-500.0,0.00019452,2]
[349772687,1737420645043,-500.0,0.00019452,2]
[349772688,1737420645105,-500.0,0.00019452,2]
[349772689,1737420645116,-500.0,0.00019452,2]
[349772690,1737420645126,-500.0,0.00019452,2]
[349772691,1737420645137,-500.0,0.00019452,2]
[349772692,1737420645147,-425.82599224,0.00019452,2]
[349772693,1737420645157,-500.0,0.00019452,2]
[349772694,1737420645170,-506.96,0.00019452,2]
[349772695,1737420645180,-200.0,0.00019452,2]
[349772696,1737420645190,-1515.28,0.00019452,2]
[349772697,1737420645199,-500.0,0.00019452,2]
[349772698,1737420645209,-500.0,0.00019452,2]
[349772699,1737420645221,-487.986546,0.00019452,2]
[349772700,1737420645230,-500.0,0.00019452,2]
[349772701,1737420645239,-500.0,0.00019452,2]
[349772702,1737420645248,-500.0,0.00019452,2]
[349772703,1737420645258,-500.0,0.00019452,2]
[349772704,1737420645267,-500.0,0.00019452,2]
[349772705,1737420645278,-165.80929104,0.00019452,2]
[349772706,1737420645288,-500.0,0.00019452,2]
[349772707,1737420645304,-500.0,0.00019452,2]
[349772708,1737420645316,-500.0,0.00019452,2]
[349772709,1737420645323,-500.0,0.00019452,2]
[349772710,1737420645329,-500.0,0.00019452,2]
[349772711,1737420645338,-845.58,0.00019452,2]
[349772712,1737420645345,-1653.02,0.00019452,2]
[349772713,1737420645352,-500.0,0.00019452,2]
[349772714,1737420645359,-500.0,0.00019452,2]
[349772715,1737420645366,-500.0,0.00019452,2]
[349772716,1737420645372,-500.0,0.00019452,2]
[349772717,1737420645379,-500.0,0.00019452,2]
[349772718,1737420645386,-1027.64,0.00019452,2]
[349772719,1737420645393,-527.0177345,0.00019452,2]
[349772720,1737420645399,-969.02,0.00019452,2]
[349772721,1737420645406,-500.0,0.00019452,2]
[349772722,1737420645416,-500.0,0.00019452,2]
[349772723,1737420645423,-500.0,0.00019452,2]
[349772724,1737420645432,-1967.24,0.00019452,2]
[349772725,1737420645442,-1111.37,0.00019452,2]
[349772726,1737420645451,-500.0,0.00019452,2]
[349772727,1737420645461,-500.0,0.00019452,2]
[349772728,1737420645470,-500.0,0.00019452,2]
[349772729,1737420645480,-898.19,0.00019452,2]
[349772730,1737420645489,-500.0,0.00019452,2]
[349772731,1737420645498,-500.0,0.00019452,2]
[349772732,1737420645508,-500.0,0.00019452,2]
[349772733,1737420645517,-1226.71,0.00019452,2]
[349772734,1737420645526,-652.51,0.00019452,2]
[349772735,1737420645535,-619.63,0.00019452,2]
[349772736,1737420645544,-534.69209211,0.00019452,2]
[349772737,1737420645554,-612.89800986,0.00019452,2]
[349772738,1737420645563,-1210.94,0.00019452,2]
[349772739,1737420645573,-500.0,0.00019452,2]
[349772740,1737420645582,-801.67,0.00019452,2]
[349772741,1737420645594,-500.0,0.00019452,2]
[349772742,1737420645604,-500.0,0.00019452,2]
[349772743,1737420645613,-500.0,0.00019452,2]
[349772744,1737420645623,-500.0,0.00019452,2]
[349772745,1737420645633,-500.0,0.00019452,2]
[349772746,1737420645642,-2052.29,0.00019452,2]
[349772747,1737420645652,-513.12,0.00019452,2]
[349772748,1737420645664,-1991.53,0.00019452,2]
[349772749,1737420645674,-500.0,0.00019452,2]
[349772750,1737420645686,-1181.16,0.00019452,2]
[349772751,1737420645698,-500.0,0.00019452,2]
[349772752,1737420645708,-366.10842298,0.00019452,2]
[349772753,1737420645718,-500.0,0.00019452,2]
[349772754,1737420645728,-1416.54,0.00019452,2]
[349772755,1737420645738,-500.0,0.00019452,2]
[349772756,1737420645747,-500.0,0.00019452,2]
[349772757,1737420645756,-2319.77,0.00019452,2]
[349772758,1737420645767,-780.49,0.00019452,2]
[349772759,1737420645776,-500.0,0.00019452,2]
[349772760,1737420645786,-2547.64,0.00019452,2]
[349772761,1737420645795,-611.07306311,0.00019452,2]
[349772762,1737420645805,-500.0,0.00019452,2]
[349772763,1737420645814,-556.06,0.00019452,2]
[349772764,1737420645823,-1503.59,0.00019452,2]
[349772765,1737420645832,-497.4088985,0.00019452,2]
[349772766,1737420645842,-500.0,0.00019452,2]
[349772767,1737420645852,-500.0,0.00019452,2]
[349772768,1737420645861,-826.66,0.00019452,2]
[349772769,1737420645871,-500.0,0.00019452,2]
[349772770,1737420645880,-500.0,0.00019452,2]
[349772771,1737420645890,-500.0,0.00019452,2]
[349772772,1737420645900,-251.18375063,0.00019452,2]
[349772773,1737420645909,-883.4,0.00019452,2]
[349772774,1737420645922,-1204.67,0.00019452,2]
[349772775,1737420645931,-500.0,0.00019452,2]
[349772776,1737420645941,-500.0,0.00019452,2]
[349772777,1737420645951,-500.0,0.00019452,2]
[349772778,1737420645961,-500.0,0.00019452,2]
[349772779,1737420645970,-500.0,0.00019452,2]
[349772780,1737420645980,-1126.47,0.00019452,2]
[349772781,1737420645990,-633.24,0.00019452,2]
[349772782,1737420645999,-2671.26,0.00019452,2]
[349772783,1737420646011,-500.0,0.00019452,2]
[349772784,1737420646020,-500.0,0.00019452,2]
[349772785,1737420646030,-500.0,0.00019452,2]
[349772786,1737420646040,-2393.16,0.00019452,2]
[349772787,1737420646049,-488.59602379,0.00019452,2]
[349772788,1737420646060,-500.0,0.00019452,2]
[349772789,1737420646070,-603.06,0.00019452,2]
[349772790,1737420646083,-577.54818474,0.00019452,2]
[349772791,1737420646093,-500.0,0.00019452,2]
[349772792,1737420646103,-500.0,0.00019452,2]
[349772793,1737420646113,-500.0,0.00019452,2]
[349772795,1737420646123,-500.0,0.00019452,2]
[349772796,1737420646132,-500.0,0.00019452,2]
[349772797,1737420646142,-500.0,0.00019452,2]
[349772798,1737420646151,-500.0,0.00019452,2]
[349772799,1737420646161,-500.0,0.00019452,2]
[349772800,1737420646171,-500.0,0.00019452,2]
[349772801,1737420646181,-582.27,0.00019452,2]
[349772802,1737420646190,-1857.25,0.00019452,2]
[349772803,1737420646200,-2242.43,0.00019452,2]
[349772804,1737420646210,-500.0,0.00019473,2]
[349772805,1737420646224,-1000.0,0.00019526,2]
[349772806,1737420646233,-500.0,0.00019592,2]
[349772807,1737420646242,-673.02,0.00019592,2]
[349772808,1737420646252,-500.0,0.00019592,2]
[349772809,1737420646262,-500.0,0.00019592,2]
[349772811,1737420646273,-19075.48069027,0.00019606,2]
[349772813,1737420646284,-1482.97,0.00019625,2]
[349772815,1737420646294,-500.0,0.00019625,2]
[349772816,1737420646304,-1199.3,0.00019625,2]
[349772817,1737420646314,-551.03,0.00019625,2]
[349772818,1737420646329,-2292.14,0.00019625,2]
[349772820,1737420646343,-500.0,0.00019625,2]
[349772821,1737420646353,-500.0,0.00019625,2]
[349772822,1737420646363,-500.0,0.00019625,2]
[349772823,1737420646374,-500.0,0.00019625,2]
[349772824,1737420646383,-500.0,0.00019625,2]
[349772825,1737420646394,-500.0,0.00019625,2]
[349772826,1737420646403,-753.81,0.00019625,2]
[349772827,1737420646415,-597.97,0.00019625,2]
[349772828,1737420646425,-750.01,0.00019625,2]
[349772829,1737420646435,-652.84,0.00019625,2]
[349772830,1737420646445,-1174.84,0.00019625,2]
[349772831,1737420646454,-2187.02,0.00019625,2]
[349772832,1737420646464,-848.77,0.00019625,2]
[349772833,1737420646474,-1671.37,0.00019625,2]
[349772834,1737420646483,-2145.23,0.00019625,2]
[349772835,1737420646493,-3969.98,0.00019625,2]
[349772836,1737420646503,-500.0,0.00019625,2]
[349772837,1737420646513,-634.19,0.00019625,2]
[349772838,1737420646523,-3283.45,0.00019625,2]
[349772839,1737420646533,-1093.65,0.00019625,2]
[349772840,1737420646543,-654.71,0.00019625,2]
[349772841,1737420646554,-2167.64,0.00019625,2]
[349772842,1737420646564,-636.22,0.00019625,2]
[349772843,1737420646573,-500.0,0.00019625,2]
[349772844,1737420646583,-709.4,0.00019625,2]
[349772845,1737420646593,-1498.52,0.00019625,2]
[349772846,1737420646603,-1044.91,0.00019625,2]
[349772847,1737420646613,-1345.86,0.00019625,2]
[349772848,1737420646623,-500.0,0.00019625,2]
[349772849,1737420646632,-966.72,0.00019625,2]
[349772850,1737420646642,-1000.0,0.00019625,2]
[349772851,1737420646653,-1312.72,0.00019625,2]
[349772852,1737420646665,-615.08,0.00019625,2]
[349772853,1737420646675,-1967.56,0.00019625,2]
[349772854,1737420646685,-500.33584631,0.00019664,2]
[349772855,1737420646695,-469.83225263,0.00019725,2]
[349772856,1737420646705,-500.0,0.00019725,2]
[349772857,1737420646714,-541.66,0.00019725,2]
[349772858,1737420646724,-500.0,0.00019725,2]
[349772859,1737420646734,-1183.9,0.00019725,2]
[349772860,1737420646743,-505.3,0.00019725,2]
[349772861,1737420646753,-500.0,0.00019725,2]
[349772862,1737420646762,-500.0,0.00019725,2]
[349772864,1737420646772,-500.0,0.00019725,2]
[349772865,1737420646781,-500.0,0.00019725,2]
[349772867,1737420646791,-500.0,0.00019725,2]
[349772869,1737420646800,-500.0,0.00019725,2]
[349772871,1737420646810,-500.0,0.00019725,2]
[349772872,1737420646820,-500.0,0.00019725,2]
[349772874,1737420646829,-500.0,0.00019725,2]
[349772876,1737420646839,-483.75833128,0.00019725,2]
[349772878,1737420646848,-501.19,0.00019725,2]
[349772880,1737420646859,-528.75864495,0.00019725,2]
[349772882,1737420646869,-500.0,0.00019725,2]
[349772883,1737420646880,-500.0,0.00019725,2]
[349772885,1737420646890,-500.0,0.00019725,2]
[349772887,1737420646900,-418.48383812,0.00019725,2]
[349772889,1737420646911,-500.0,0.00019725,2]
[349772891,1737420646922,-500.0,0.00019725,2]
[349772893,1737420646932,-500.0,0.00019725,2]
[349772894,1737420646941,-500.0,0.00019725,2]
[349772896,1737420646951,-500.0,0.00019725,2]
[349772897,1737420646961,-500.0,0.00019725,2]
[349772898,1737420646970,-500.0,0.00019725,2]
[349772899,1737420646980,-500.0,0.00019725,2]
[349772900,1737420646990,-500.0,0.00019725,2]
[349772901,1737420646999,-500.0,0.00019725,2]
[349772902,1737420647015,-500.0,0.00019725,2]
[349772903,1737420647024,-500.0,0.00019725,2]
[349772904,1737420647034,-500.0,0.00019725,2]
[349772905,1737420647043,-572.63,0.00019725,2]
[349772906,1737420647053,-500.0,0.00019725,2]
[349772907,1737420647062,-500.0,0.00019725,2]
[349772908,1737420647072,-500.0,0.00019725,2]
[349772909,1737420647081,-179.70430011,0.00019725,2]
[349772910,1737420647091,-500.0,0.00019725,2]
[349772911,1737420647101,-500.0,0.00019725,2]
[349772912,1737420647110,-569.92,0.00019725,2]
[349772913,1737420647120,-500.0,0.00019725,2]
[349772914,1737420647129,-500.0,0.00019725,2]
[349772915,1737420647138,-500.0,0.00019725,2]
[349772916,1737420647148,-500.0,0.00019725,2]
[349772917,1737420647157,-500.0,0.00019725,2]
[349772918,1737420647169,-500.0,0.00019725,2]
[349772919,1737420647179,-500.0,0.00019725,2]
[349772920,1737420647188,-687.02,0.00019725,2]
[349772921,1737420647198,-500.0,0.00019725,2]
[349772922,1737420647207,-500.0,0.00019725,2]
[349772923,1737420647220,-500.0,0.00019725,2]
[349772924,1737420647229,-500.0,0.00019725,2]
[349772925,1737420647239,-500.0,0.00019725,2]
[349772926,1737420647248,-668.45,0.00019725,2]
[349772927,1737420647258,-650.98,0.00019725,2]
[349772928,1737420647268,-563.68,0.00019725,2]
[349772929,1737420647277,-500.0,0.00019725,2]